bitfinex/quotes_BTCUSD_20241025
["timestamp","ask_amount","ask_price","bid_price","bid_amount"]
[1729868374633,0.292646,68342.0,68334.0,0.00457534]
[1729868374853,0.22022066,68345.0,68332.0,0.00457552]
[1729868374854,0.292659,68339.0,68332.0,0.00457552]
[1729868375084,0.146333,68337.0,68331.0,0.22022066]
[1729868376651,0.47439645,68337.0,68328.0,0.000825]
[1729868377763,0.30183681,68337.0,68328.0,0.000825]
[1729868379790,0.15550381,68337.0,68328.0,0.000825]
[1729868379999,0.005,68337.0,68330.0,0.146347]
[1729868380209,0.005,68337.0,68329.0,0.00292685]
[1729868380210,0.005,68337.0,68329.0,0.146349]
[1729868380675,0.005,68337.0,68328.0,0.000825]
[1729868380889,0.005,68337.0,68329.0,0.146349]
[1729868381772,0.005,68337.0,68328.0,0.000825]
[1729868382672,0.151333,68337.0,68328.0,0.000825]
[1729868382897,0.005,68337.0,68329.0,0.00292665]
[1729868383125,0.005,68337.0,68328.0,0.000825]
[1729868383807,0.151333,68337.0,68328.0,0.000825]
[1729868384023,0.005,68337.0,68329.0,0.00292665]
[1729868384244,0.005,68337.0,68328.0,0.000825]
[1729868384480,0.005,68337.0,68329.0,0.00292663]
[1729868384728,0.151333,68337.0,68328.0,0.000825]
[1729868385787,0.30183681,68337.0,68328.0,0.000825]
[1729868387873,0.49793681,68337.0,68328.0,0.000825]
[1729868388325,0.77049645,68337.0,68328.0,0.000825]
[1729868388539,0.67823681,68337.0,68328.0,0.000825]
[1729868390853,0.73849657,68337.0,68328.0,0.000825]
[1729868391802,0.88900038,68337.0,68328.0,0.000825]
[1729868392454,0.73849657,68337.0,68328.0,0.000825]
[1729868392663,0.93905621,68337.0,68328.0,0.000825]
[1729868392880,0.90547036,68337.0,68328.0,0.000825]
[1729868393518,0.94899687,68337.0,68328.0,0.000825]
[1729868393749,0.94899665,68337.0,68328.0,0.000825]
[1729868394179,1.04532077,68337.0,68328.0,0.000825]
[1729868394631,1.06708392,68337.0,68328.0,0.000825]
[1729868394850,1.24947395,68337.0,68328.0,0.000825]
[1729868395130,1.16442136,68337.0,68328.0,0.000825]
[1729868395553,1.25142817,68337.0,68328.0,0.000825]
[1729868395786,1.16442136,68337.0,68328.0,0.000825]
[1729868396008,0.69080964,68329.0,68328.0,0.000825]
[1729868396228,0.40185381,68329.0,68328.0,0.000825]
[1729868396735,0.57441345,68329.0,68328.0,0.000825]
[1729868398988,0.59079626,68329.0,68328.0,0.000825]
[1729868400495,0.40185381,68329.0,68328.0,0.000825]
[1729868400727,0.005,68329.0,68328.0,0.000825]
[1729868401269,0.105,68329.0,68328.0,0.000825]
[1729868401527,0.65021345,68329.0,68328.0,0.000825]
[1729868401750,0.40185381,68329.0,68328.0,0.000825]
[1729868401966,0.25135,68329.0,68328.0,0.000825]
[1729868402187,0.40185381,68329.0,68328.0,0.000825]
[1729868402412,0.005,68329.0,68328.0,0.183225]
[1729868402649,0.005,68329.0,68328.0,0.000825]
[1729868402871,0.15135,68329.0,68328.0,0.000825]
[1729868403085,0.005,68329.0,68328.0,0.000825]
[1729868403293,0.15135,68329.0,68328.0,0.000825]
[1729868403736,0.00485849,68329.0,68328.0,0.000825]
[1729868404380,0.00489849,68329.0,68328.0,0.000825]
[1729868405260,0.15124849,68329.0,68328.0,0.000825]
[1729868405472,0.00489849,68329.0,68328.0,0.000825]
[1729868405694,0.15124849,68329.0,68328.0,0.000825]
[1729868405935,0.3017523,68329.0,68328.0,0.000825]
[1729868406360,0.00489849,68329.0,68328.0,0.000825]
[1729868406669,0.00489849,68329.0,68328.0,0.147177]
[1729868406928,0.00489849,68329.0,68328.0,0.43867939]
[1729868406929,4e-05,68329.0,68328.0,0.43867939]
[1729868407178,4e-05,68329.0,68328.0,0.58625649]
[1729868408439,0.00165,68336.0,68328.0,0.58625649]
[1729868408440,0.00165,68336.0,68335.0,0.146337]
[1729868408879,0.00165,68336.0,68335.0,0.00457522]
[1729868409314,0.00165,68336.0,68335.0,0.15383867]
[1729868409516,0.00165,68336.0,68335.0,0.23333867]
[1729868410216,0.00165,68336.0,68335.0,0.58834248]
[1729868410614,0.00165,68336.0,68335.0,0.58541603]
[1729868411480,0.00165,68336.0,68335.0,0.61355754]
[1729868411739,0.00059294,68352.0,68351.0,0.146303]
[1729868412220,0.00059294,68352.0,68351.0,0.00457389]
[1729868412441,0.00059294,68352.0,68351.0,0.146303]
[1729868412654,0.00059294,68352.0,68351.0,0.14922862]
[1729868412888,0.00059294,68352.0,68351.0,0.146303]
[1729868413854,0.00059294,68352.0,68351.0,0.40668827]
[1729868414072,0.00059294,68352.0,68351.0,0.40833619]
[1729868414369,0.00059294,68352.0,68351.0,0.74864]
[1729868414585,0.00059294,68352.0,68351.0,0.74406645]
[1729868414792,0.00059294,68352.0,68351.0,0.74863994]
[1729868415831,0.00059294,68352.0,68351.0,0.75363966]
[1729868416266,0.00059294,68352.0,68351.0,0.94934081]
[1729868416688,0.00059294,68352.0,68351.0,0.77878117]
[1729868416926,0.00059294,68352.0,68351.0,0.75378117]
[1729868417152,0.00059294,68352.0,68351.0,0.9511993]
[1729868417374,0.00059294,68352.0,68351.0,0.9467676]
[1729868417577,0.00059294,68352.0,68351.0,0.9447676]
[1729868417786,0.00165,68359.0,68351.0,1.0447676]
[1729868417999,0.00165,68359.0,68358.0,0.15642951]
[1729868418237,0.00165,68359.0,68358.0,0.77329296]
[1729868418910,0.22022066,68376.0,68375.0,0.151252]
[1729868419125,0.22022066,68376.0,68375.0,0.59461164]
[1729868419381,0.22187066,68383.0,68382.0,0.146237]
[1729868419591,0.00165,68383.0,68382.0,0.31879664]
[1729868419805,0.00165,68383.0,68382.0,0.39819664]
[1729868420015,0.00165,68383.0,68382.0,0.58639664]
[1729868420235,0.00165,68383.0,68382.0,0.74190045]
[1729868420438,0.00165,68383.0,68382.0,0.59139664]
[1729868420883,0.22022066,68396.0,68383.0,0.29247]
[1729868421101,0.22022066,68396.0,68386.0,0.146227]
[1729868421319,0.22187666,68405.0,68386.0,0.17255964]
[1729868421542,0.1,68403.0,68390.0,0.17255964]
[1729868421741,0.14619,68404.0,68390.0,0.46499664]
[1729868422039,0.294034,68405.0,68390.0,0.17255964]
[1729868422244,0.294034,68405.0,68388.0,0.292447]
[1729868422245,0.294034,68405.0,68391.0,0.22022066]
[1729868422457,0.001656,68405.0,68391.0,0.22022066]
[1729868422666,0.001656,68405.0,68394.0,0.146211]
[1729868422895,0.001656,68405.0,68394.0,0.17255964]
[1729868423343,0.147845,68405.0,68391.0,0.36643766]
[1729868423562,0.147845,68405.0,68391.0,0.22022066]
[1729868423563,0.1,68404.0,68391.0,0.22022066]
[1729868423793,0.1,68404.0,68392.0,0.292431]
[1729868424017,0.001656,68405.0,68400.0,0.17255964]
[1729868424225,0.001656,68405.0,68396.0,0.17255964]
[1729868425095,0.001656,68405.0,68396.0,0.31876564]
[1729868425310,0.001656,68405.0,68396.0,0.17255964]
[1729868425792,0.001656,68405.0,68394.0,0.146209]
[1729868426014,0.001656,68405.0,68393.0,0.0795]
[1729868426853,0.15050381,68404.0,68393.0,0.22022066]
[1729868427395,0.146196,68402.0,68393.0,0.22022066]
[1729868427823,0.001656,68405.0,68400.0,0.22022066]
[1729868428034,0.001656,68405.0,68396.0,0.31876564]
[1729868428243,0.001656,68405.0,68397.0,0.14912676]
[1729868428456,0.001656,68405.0,68397.0,0.00292376]
[1729868429134,0.001656,68405.0,68400.0,0.17255964]
[1729868429347,0.001656,68405.0,68400.0,0.17548329]
[1729868429869,0.001656,68405.0,68400.0,0.17255964]
[1729868430072,0.001656,68405.0,68399.0,0.0826]
[1729868430510,0.001656,68405.0,68394.0,0.420511]
[1729868430734,0.00033613,68405.0,68394.0,0.0763]
[1729868430952,0.00033613,68405.0,68392.0,0.22022066]
[1729868431178,0.15083994,68405.0,68393.0,0.17255964]
[1729868431396,0.15083994,68405.0,68393.0,0.17548338]
[1729868431624,0.146191,68404.0,68393.0,0.17548338]
[1729868431837,0.15083994,68405.0,68394.0,0.146211]
[1729868432052,0.29702894,68405.0,68393.0,0.17255964]
[1729868432267,0.15083994,68405.0,68393.0,0.17255964]
[1729868432488,0.15083994,68405.0,68394.0,0.00292389]
[1729868432707,0.15083994,68405.0,68394.0,0.14913389]
[1729868432924,0.15083994,68405.0,68394.0,0.00292389]
[1729868433150,0.00033613,68405.0,68402.0,0.17255964]
[1729868433539,0.00033613,68405.0,68392.0,0.22022066]
[1729868433540,0.00033613,68405.0,68399.0,0.292401]
[1729868433756,0.00033613,68405.0,68392.0,0.22522066]
[1729868433757,0.00033613,68405.0,68395.0,0.17255964]
[1729868433980,0.00033613,68405.0,68395.0,0.146208]
[1729868434208,0.00033613,68405.0,68395.0,0.17255964]
[1729868434436,0.00033613,68405.0,68396.0,0.146206]
[1729868434666,0.00033613,68405.0,68395.0,0.17255964]
[1729868434892,0.00033613,68405.0,68394.0,0.076]
[1729868435130,0.17255964,68402.0,68389.0,0.0774]
[1729868435351,0.083,68403.0,68392.0,0.22022066]
[1729868435578,0.23350381,68403.0,68392.0,0.22022066]
[1729868435799,0.146194,68402.0,68392.0,0.22022066]
[1729868436035,0.23350381,68403.0,68392.0,0.22022066]
[1729868436251,0.146194,68402.0,68392.0,0.22022066]
[1729868436476,0.292389,68402.0,68388.0,0.17255964]
[1729868436684,0.44289681,68401.0,68384.0,0.4701803]
[1729868436892,0.15050381,68401.0,68391.0,0.22022066]
[1729868437120,0.146208,68396.0,68384.0,0.6164123]
[1729868437379,0.292399,68400.0,68384.0,0.4701803]
[1729868437584,0.15050381,68400.0,68384.0,0.4701803]
[1729868437790,0.146206,68397.0,68384.0,0.223632]
[1729868438030,0.292419,68395.0,68384.0,0.0774]
[1729868438240,0.146218,68391.0,68381.0,0.22022066]
[1729868438450,0.292431,68393.0,68388.0,0.22022066]
[1729868438451,0.146216,68392.0,68388.0,0.22022066]
[1729868438686,0.146214,68393.0,68381.0,0.22022066]
[1729868438923,0.146214,68393.0,68381.0,0.36645866]
[1729868439158,0.146214,68393.0,68381.0,0.22022066]
[1729868439635,0.146214,68393.0,68381.0,0.36645866]
[1729868439849,0.29671581,68394.0,68381.0,0.36645966]
[1729868440324,0.146214,68393.0,68381.0,0.36645966]
[1729868440564,0.17255964,68398.0,68381.0,0.36645966]
[1729868440565,0.1,68401.0,68388.0,0.22022066]
[1729868440795,0.1,68401.0,68391.0,0.0792]
[1729868440796,0.22022066,68397.0,68391.0,0.0792]
[1729868441051,0.15050381,68400.0,68388.0,0.31878264]
[1729868441288,0.29670181,68400.0,68388.0,0.146223]
[1729868441495,0.17255964,68398.0,68381.0,0.22022066]
[1729868441719,0.22820381,68397.0,68388.0,0.22022066]
[1729868441938,0.15050381,68397.0,68388.0,0.22022066]
[1729868442163,0.15050381,68397.0,68385.0,0.292459]
[1729868442393,0.146211,68395.0,68383.0,0.17255964]
[1729868442613,0.146211,68395.0,68383.0,0.146235]
[1729868442820,0.146211,68395.0,68381.0,0.22022066]
[1729868442821,0.15050381,68394.0,68381.0,0.22022066]
[1729868443238,0.29671481,68394.0,68381.0,0.36645766]
[1729868443441,0.146214,68393.0,68381.0,0.22022066]
[1729868443661,0.146214,68393.0,68381.0,0.36645866]
[1729868443889,0.15050381,68392.0,68379.0,0.0782]
[1729868444110,0.438655,68391.0,68381.0,0.22022066]
[1729868444331,0.37422181,68391.0,68381.0,0.22022066]
[1729868444540,0.22800381,68391.0,68381.0,0.22022066]
[1729868445424,0.37422181,68391.0,68381.0,0.22022066]
[1729868445630,0.22800381,68391.0,68381.0,0.22022066]
[1729868446057,0.15050381,68391.0,68381.0,0.22022066]
[1729868446310,0.000825,68399.0,68384.0,0.292466]
[1729868446520,0.15050381,68398.0,68387.0,0.146224]
[1729868446943,4e-05,68391.0,68386.0,0.146226]
[1729868447161,4e-05,68391.0,68388.0,0.22022066]
[1729868447384,4e-05,68391.0,68385.0,0.22213]
[1729868447625,4e-05,68391.0,68386.0,0.146228]
[1729868447839,4e-05,68391.0,68385.0,0.0759]
[1729868449001,4e-05,68391.0,68384.0,0.00292435]
[1729868449437,0.14622,68390.0,68384.0,0.00292435]
[1729868449671,0.14622,68390.0,68375.0,0.22022066]
[1729868449672,0.40406345,68389.0,68375.0,0.22022066]
[1729868449895,0.17255964,68377.0,68375.0,0.22022066]
[1729868450104,0.14625,68376.0,68375.0,0.22022066]
[1729868450342,0.146243,68379.0,68375.0,0.22022066]
[1729868450552,0.15050381,68378.0,68367.0,0.22022066]
[1729868450982,0.146248,68377.0,68367.0,0.22022066]
[1729868451203,0.15050381,68378.0,68367.0,0.22022066]
[1729868451424,0.146253,68375.0,68367.0,0.22022066]
[1729868451648,0.146248,68377.0,68367.0,0.22022066]
[1729868451870,0.15050381,68378.0,68367.0,0.22022066]
[1729868452089,0.146248,68377.0,68367.0,0.22022066]
[1729868452535,0.15050381,68377.0,68361.0,0.0759]
[1729868452738,0.15050381,68377.0,68367.0,0.22022066]
[1729868452739,0.146252,68375.0,68367.0,0.22022066]
[1729868452981,0.15050381,68374.0,68361.0,0.222181]
[1729868453223,0.15050381,68374.0,68361.0,0.0759]
[1729868453445,0.292513,68373.0,68361.0,0.0759]
[1729868453664,0.29676381,68372.0,68367.0,0.001648]
[1729868453878,0.146261,68371.0,68367.0,0.001648]
[1729868454100,0.15050381,68370.0,68367.0,0.001648]
[1729868454554,0.146267,68368.0,68367.0,0.001648]
[1729868454808,0.46933045,68368.0,68367.0,0.001648]
[1729868455002,0.84623045,68368.0,68367.0,0.001648]
[1729868456956,0.86250217,68368.0,68367.0,0.001648]
[1729868457205,0.87450217,68368.0,68367.0,0.001648]
[1729868457443,0.98803773,68368.0,68367.0,0.001648]
[1729868457682,0.89550217,68368.0,68367.0,0.001648]
[1729868460363,0.89750217,68368.0,68367.0,0.001648]
[1729868460573,0.89550217,68368.0,68367.0,0.001648]
[1729868466617,0.89750217,68368.0,68367.0,0.001648]
[1729868466882,0.58433045,68368.0,68367.0,0.001648]
[1729868467980,0.74159889,68368.0,68367.0,0.001648]
[1729868468199,0.65372889,68368.0,68367.0,0.001648]
[1729868468452,0.60933045,68368.0,68367.0,0.001648]
[1729868468670,0.60733045,68368.0,68367.0,0.001648]
[1729868469529,0.60933045,68368.0,68367.0,0.001648]
[1729868469738,0.61133045,68368.0,68367.0,0.001648]
[1729868469944,0.60933045,68368.0,68367.0,0.001648]
[1729868470172,0.57133045,68368.0,68367.0,0.001648]
[1729868471902,0.56933045,68368.0,68367.0,0.001648]
[1729868472797,0.42306345,68368.0,68367.0,0.001648]
[1729868473060,0.15050381,68368.0,68367.0,0.001648]
[1729868473286,0.17755964,68388.0,68368.0,0.1822]
[1729868473511,0.22022066,68384.0,68372.0,0.17255964]
[1729868473746,0.15050381,68383.0,68373.0,0.146255]
[1729868473979,0.17255964,68389.0,68378.0,0.146245]
[1729868474212,0.297477,68391.0,68378.0,0.146245]
[1729868474213,0.15050381,68388.0,68378.0,0.075]
[1729868474672,0.15050381,68388.0,68381.0,0.146238]
[1729868474888,0.15050381,68388.0,68378.0,0.075]
[1729868475128,4e-05,68391.0,68379.0,0.51270766]
[1729868475348,4e-05,68391.0,68380.0,0.292483]
[1729868475349,0.15050381,68390.0,68380.0,0.292483]
[1729868475581,4e-05,68391.0,68380.0,0.146241]
[1729868475874,4e-05,68391.0,68386.0,0.22022066]
[1729868476089,4e-05,68391.0,68384.0,0.292466]
[1729868476299,4e-05,68391.0,68386.0,0.146228]
[1729868476527,4e-05,68391.0,68388.0,0.146223]
[1729868476945,4e-05,68391.0,68387.0,0.146226]
[1729868477175,4e-05,68391.0,68386.0,0.146228]
[1729868477421,4e-05,68391.0,68382.0,0.1921]
[1729868477629,4e-05,68391.0,68386.0,0.146227]
[1729868477838,4e-05,68391.0,68387.0,0.146226]
[1729868478077,4e-05,68391.0,68385.0,0.146228]
[1729868478296,4e-05,68391.0,68386.0,0.146228]
[1729868478993,4e-05,68391.0,68384.0,0.292466]
[1729868479206,4e-05,68391.0,68382.0,0.1921]
[1729868479207,4e-05,68391.0,68387.0,0.146224]
[1729868479700,4e-05,68391.0,68385.0,0.292461]
[1729868479915,4e-05,68391.0,68386.0,0.146227]
[1729868480126,4e-05,68391.0,68385.0,0.292461]
[1729868480334,4e-05,68391.0,68390.0,0.14622]
[1729868480795,4e-05,68391.0,68389.0,0.292444]
[1729868481429,4e-05,68391.0,68390.0,0.14622]
[1729868481644,4e-05,68391.0,68390.0,0.22782]
[1729868482324,4e-05,68391.0,68390.0,0.0816]
[1729868482557,4e-05,68391.0,68390.0,0.22782]
[1729868483026,4e-05,68391.0,68390.0,0.0816]
[1729868483253,4e-05,68391.0,68382.0,0.2703]
[1729868483484,4e-05,68391.0,68384.0,0.146231]
[1729868483707,4e-05,68391.0,68384.0,0.146232]
[1729868484385,0.15050381,68390.0,68382.0,0.2703]
[1729868484607,0.15050381,68390.0,68384.0,0.146231]
[1729868484862,0.15050381,68390.0,68382.0,0.0782]
[1729868485095,0.29672381,68390.0,68382.0,0.224436]
[1729868485328,0.15050381,68390.0,68383.0,0.29247]
[1729868485552,0.15050381,68390.0,68386.0,0.146227]
[1729868485773,0.15050381,68390.0,68385.0,0.146229]
[1729868485999,4e-05,68391.0,68389.0,0.146221]
[1729868486233,4e-05,68391.0,68387.0,0.17255964]
[1729868486465,4e-05,68391.0,68390.0,0.14622]
[1729868487668,4e-05,68391.0,68390.0,0.14914419]
[1729868487866,4e-05,68391.0,68390.0,0.22784419]
[1729868488075,4e-05,68391.0,68390.0,0.22492]
[1729868488701,4e-05,68391.0,68390.0,0.22784409]
[1729868488955,4e-05,68391.0,68390.0,0.22492]
[1729868489396,4e-05,68391.0,68390.0,0.22784399]
[1729868489627,4e-05,68391.0,68390.0,0.22492]
[1729868492342,4e-05,68391.0,68390.0,0.0787]
[1729868492561,4e-05,68391.0,68390.0,0.44514066]
[1729868492784,4e-05,68391.0,68390.0,0.22492]
[1729868493197,4e-05,68391.0,68390.0,0.22784396]
[1729868493616,4e-05,68391.0,68390.0,0.22492]
[1729868494070,4e-05,68391.0,68390.0,0.22784396]
[1729868494727,4e-05,68391.0,68390.0,0.22784389]
[1729868494944,4e-05,68391.0,68390.0,0.22492]
[1729868496056,4e-05,68391.0,68390.0,0.2278439]
[1729868496282,4e-05,68391.0,68390.0,0.22492]
[1729868499556,4e-05,68391.0,68390.0,0.22784388]
[1729868499794,4e-05,68391.0,68390.0,0.67974769]
[1729868500006,4e-05,68391.0,68390.0,0.67482381]
[1729868500462,4e-05,68391.0,68390.0,0.84938345]
[1729868500684,0.000825,68399.0,68398.0,0.69756264]
[1729868500904,0.000825,68399.0,68398.0,0.67550681]
[1729868502661,0.000825,68399.0,68398.0,0.70050681]
[1729868502878,0.000825,68399.0,68398.0,0.71533627]
[1729868503800,0.000825,68399.0,68398.0,0.71733627]
[1729868504005,0.000825,68399.0,68398.0,0.71533627]
[1729868504693,0.000825,68399.0,68398.0,0.71733627]
[1729868504907,0.000825,68399.0,68398.0,0.71533627]
[1729868506226,1.50214921,68400.0,68399.0,0.5584]
[1729868506434,0.11898291,68400.0,68399.0,0.71090381]
[1729868506694,1.3e-07,68405.0,68404.0,0.28619]
[1729868506942,0.22022066,68416.0,68404.0,0.28619]
[1729868506943,0.22022066,68416.0,68415.0,0.161166]
[1729868507168,0.22022066,68416.0,68415.0,0.76042945]
[1729868507385,0.22022066,68424.0,68420.0,0.146156]
[1729868507597,0.17255964,68436.0,68420.0,0.14907871]
[1729868508232,0.22022066,68438.0,68420.0,0.30958252]
[1729868508450,0.22022066,68438.0,68420.0,0.30665981]
[1729868510485,0.22022066,68438.0,68420.0,0.31365981]
[1729868510700,0.22022066,68438.0,68420.0,0.31165981]
[1729868513744,0.22022066,68437.0,68420.0,0.51875981]
[1729868513959,0.22022066,68437.0,68420.0,0.51675981]
[1729868514378,0.22022066,68437.0,68420.0,0.49375981]
[1729868516251,0.3927803,68437.0,68420.0,0.49375981]
[1729868516476,0.22022066,68437.0,68420.0,0.49375981]
[1729868520700,0.22022066,68444.0,68420.0,0.77756944]
[1729868520906,0.22022066,68436.0,68427.0,0.012]
[1729868521132,0.22022066,68436.0,68427.0,0.47920445]
[1729868521389,0.187,68447.0,68427.0,0.47920445]
[1729868521632,0.0803,68454.0,68427.0,0.92539342]
[1729868522061,0.0803,68454.0,68427.0,0.88680445]
[1729868522275,1e-06,68428.0,68427.0,0.88480445]
[1729868522491,1e-06,68428.0,68427.0,0.92539342]
[1729868522701,1e-06,68428.0,68427.0,0.88680445]
[1729868523129,1e-06,68428.0,68427.0,0.88480445]
[1729868523568,0.3827813,68445.0,68431.0,0.005]
[1729868523773,0.17255964,68460.0,68440.0,0.146113]
[1729868523774,0.17255964,68441.0,68440.0,0.146113]
[1729868524000,0.17255964,68441.0,68439.0,0.29223]
[1729868524001,0.3713,68458.0,68439.0,0.29223]
[1729868524211,0.22022066,68451.0,68439.0,0.29223]
[1729868524445,0.46472664,68454.0,68441.0,0.22022066]
[1729868524685,0.146088,68452.0,68443.0,0.438319]
[1729868524900,0.17255964,68454.0,68441.0,0.22022066]
[1729868525130,0.17255964,68454.0,68443.0,0.292213]
[1729868525131,0.146085,68453.0,68443.0,0.292213]
[1729868525334,0.17255964,68454.0,68446.0,0.146099]
[1729868525546,0.292171,68453.0,68443.0,0.292213]
[1729868525763,0.0812,68450.0,68441.0,0.22022066]
[1729868525983,0.1882,68449.0,68442.0,0.292218]
[1729868526270,0.17255964,68445.0,68438.0,0.292231]
[1729868526492,0.1899,68438.0,68435.0,0.146122]
[1729868526732,0.1899,68438.0,68428.0,0.22022066]
[1729868526733,0.14612,68437.0,68432.0,0.14613]
[1729868526965,0.17255964,68435.0,68430.0,0.292268]
[1729868527198,0.0756,68431.0,68428.0,0.22022066]
[1729868527651,0.0756,68431.0,68429.0,0.146136]
[1729868528076,0.0756,68431.0,68427.0,0.001648]
[1729868528284,0.0756,68431.0,68428.0,0.292278]
[1729868528517,0.0756,68431.0,68428.0,0.146138]
[1729868529008,0.0756,68431.0,68427.0,0.001648]
[1729868529009,0.17255964,68430.0,68427.0,0.001648]
[1729868529439,0.31869564,68430.0,68427.0,0.001648]
[1729868529658,0.17255964,68430.0,68427.0,0.001648]
[1729868530140,0.336839,68428.0,68427.0,0.001648]
[1729868530322,0.1907,68428.0,68427.0,0.001648]
[1729868531473,0.50939864,68428.0,68427.0,0.001648]
[1729868532899,0.65990245,68428.0,68427.0,0.001648]
[1729868533138,0.84350245,68428.0,68427.0,0.001648]
[1729868533368,0.411264,68416.0,68415.0,0.22022066]
[1729868533600,0.56176781,68416.0,68415.0,0.22022066]
[1729868534087,0.41560381,68416.0,68405.0,0.001648]
[1729868534315,0.146171,68413.0,68406.0,0.146185]
[1729868534532,0.146169,68414.0,68407.0,0.36640266]
[1729868534772,0.17255964,68414.0,68409.0,0.146178]
[1729868534996,0.17255964,68414.0,68412.0,0.146172]
[1729868535278,0.17255964,68414.0,68408.0,0.292363]
[1729868535486,0.17255964,68414.0,68409.0,0.146178]
[1729868535957,0.31872964,68414.0,68407.0,0.22022066]
[1729868536180,0.17255964,68414.0,68407.0,0.22022066]
[1729868536389,0.17255964,68414.0,68408.0,0.292363]
[1729868536590,0.15050381,68415.0,68407.0,0.22186866]
[1729868536873,0.17255964,68416.0,68407.0,0.22186866]
[1729868537097,0.146168,68414.0,68407.0,0.36805066]
[1729868537354,0.31872564,68416.0,68409.0,0.146178]
[1729868537586,0.000824,68428.0,68427.0,0.146141]
[1729868538320,0.000824,68428.0,68427.0,0.31870064]
[1729868539235,0.000824,68428.0,68424.0,0.29229]
[1729868539443,0.000824,68428.0,68427.0,0.146141]
[1729868540583,0.000824,68428.0,68427.0,0.65470445]
[1729868541023,0.000824,68428.0,68427.0,0.65670445]
[1729868541242,0.000824,68428.0,68427.0,0.67170445]
[1729868541467,0.000824,68428.0,68427.0,0.66970445]
[1729868541985,0.22022066,68452.0,68427.0,0.66970445]
[1729868541986,0.22022066,68452.0,68451.0,0.146089]
[1729868542471,0.0796,68457.0,68454.0,0.146083]
[1729868542722,0.183,68460.0,68449.0,0.17255964]
[1729868542984,0.183,68460.0,68451.0,0.292179]
[1729868543198,0.183,68460.0,68450.0,0.146092]
[1729868543199,0.183,68460.0,68450.0,0.146091]
[1729868543414,0.183,68460.0,68450.0,0.14609]
[1729868543649,0.146075,68458.0,68448.0,0.146094]
[1729868543891,0.183,68460.0,68454.0,0.22022066]
[1729868544135,0.183,68460.0,68449.0,0.292188]
[1729868544404,0.000868,68468.0,68457.0,0.17255964]
[1729868544694,0.000868,68468.0,68463.0,0.292128]
[1729868544901,0.000868,68468.0,68464.0,0.146062]
[1729868545102,0.000868,68468.0,68463.0,0.146063]
[1729868545344,0.000868,68468.0,68463.0,0.146062]
[1729868545613,0.000868,68468.0,68461.0,0.292137]
[1729868545827,0.000868,68468.0,68457.0,0.29215]
[1729868546027,0.17255964,68466.0,68456.0,0.22022066]
[1729868546455,0.000868,68468.0,68456.0,0.22022066]
[1729868546886,0.14606,68465.0,68456.0,0.36629866]
[1729868547101,0.17255964,68466.0,68456.0,0.22022066]
[1729868547344,0.146063,68464.0,68456.0,0.22022066]
[1729868547586,0.292126,68464.0,68449.0,0.292186]
[1729868547823,0.14607,68460.0,68456.0,0.22022066]
[1729868548050,0.14607,68460.0,68448.0,0.22022066]
[1729868548051,0.292137,68461.0,68455.0,0.22022066]
[1729868548294,0.146075,68458.0,68455.0,0.22022066]
[1729868548527,0.292145,68459.0,68448.0,0.22022066]
[1729868548769,0.23220381,68463.0,68448.0,0.22022066]
[1729868548770,0.146077,68457.0,68448.0,0.22022066]
[1729868548952,0.146083,68454.0,68448.0,0.16022066]
[1729868549219,0.146083,68454.0,68438.0,0.46479164]
[1729868549220,0.146089,68452.0,68447.0,0.22022066]
[1729868549550,0.14609,68451.0,68447.0,0.22022066]
[1729868549656,0.32306345,68454.0,68447.0,0.22022066]
[1729868549881,0.292176,68452.0,68447.0,0.22022066]
[1729868550119,0.146094,68449.0,68443.0,0.146105]
[1729868550365,0.292176,68452.0,68441.0,0.292222]
[1729868550602,0.292176,68452.0,68442.0,0.292218]
[1729868550603,0.146088,68452.0,68442.0,0.292218]
[1729868550828,0.29658781,68454.0,68447.0,0.146097]
[1729868551058,0.146088,68452.0,68445.0,0.146101]
[1729868551290,0.146085,68453.0,68447.0,0.146098]
[1729868551533,0.15050381,68454.0,68440.0,0.22022066]
[1729868552011,0.146086,68453.0,68442.0,0.292218]
[1729868552243,0.199,68456.0,68441.0,0.17548177]
[1729868552465,0.17255964,68462.0,68443.0,0.292213]
[1729868552466,0.292132,68462.0,68443.0,0.292213]
[1729868552697,0.15050381,68461.0,68443.0,0.292213]
[1729868552940,0.15050381,68461.0,68445.0,0.292205]
[1729868553157,0.17255964,68451.0,68445.0,0.292205]
[1729868553430,0.17255964,68451.0,68446.0,0.22022066]
[1729868553864,0.17255964,68451.0,68447.0,0.146098]
[1729868554567,0.17255964,68451.0,68446.0,0.22022066]
[1729868554771,0.17255964,68455.0,68443.0,0.22022066]
[1729868554990,0.146086,68453.0,68445.0,0.292203]
[1729868555217,0.17255964,68455.0,68451.0,0.146089]
[1729868555458,0.17255964,68455.0,68443.0,0.22022066]
[1729868555686,0.146086,68453.0,68447.0,0.146098]
[1729868555981,0.146088,68452.0,68447.0,0.146098]
[1729868557367,0.292184,68450.0,68433.0,0.22022066]
[1729868557599,0.31866164,68446.0,68442.0,0.22022066]
[1729868557807,0.31865964,68446.0,68442.0,0.22022066]
[1729868558023,0.17255964,68446.0,68433.0,0.22022066]
[1729868558234,0.17255964,68440.0,68433.0,0.22022066]
[1729868558929,0.17255964,68445.0,68433.0,0.22022066]
[1729868559162,0.076,68450.0,68433.0,0.22022066]
[1729868559163,0.17255964,68449.0,68433.0,0.22314292]
[1729868559382,0.31865464,68449.0,68433.0,0.22314292]
[1729868559600,0.17255964,68449.0,68433.0,0.22314292]
[1729868559859,0.17255964,68454.0,68440.0,0.22022066]
[1729868560095,0.1,68453.0,68450.0,0.14609]
[1729868560327,0.000824,68453.0,68447.0,0.292192]
[1729868560543,0.000824,68453.0,68452.0,0.146087]
[1729868560758,0.000824,68453.0,68451.0,0.146089]
[1729868561447,0.000824,68453.0,68452.0,0.146087]
[1729868561677,0.000824,68453.0,68449.0,0.292184]
[1729868561892,0.000824,68453.0,68451.0,0.146089]
[1729868562110,0.000824,68453.0,68452.0,0.146087]
[1729868571364,0.000824,68453.0,68439.0,0.0765]
[1729868571634,0.000824,68453.0,68450.0,0.146091]
[1729868572111,0.000824,68453.0,68452.0,0.146087]
[1729868573009,0.000824,68453.0,68450.0,0.0811]